[Event "*** MasterClass Titled Tuesday Blitz"]
[Site "Chess.com"]
[Date "2017.12.05"]
[Round "2"]
[White "dusanacns"]
[Black "Tash_Boy"]
[Result "1-0"]
[WhiteElo "2618"]
[BlackElo "2423"]
[TimeControl "180+2"]
[EndTime "14:34:49 PST"]
[Termination "dusanacns won by resignation"]

1. e4 {[%clk 0:02:50.1]} 1... e5 {[%clk 0:02:59.3]} 2. Nc3 {[%clk 0:02:50.4]}
2... Nc6 {[%clk 0:02:57.5]} 3. g3 {[%clk 0:02:51.5]} 3... Bc5 {[%clk 0:02:57]}
4. Bg2 {[%clk 0:02:52]} 4... d6 {[%clk 0:02:57.2]} 5. Nge2 {[%clk 0:02:51.1]}
5... h5 {[%clk 0:02:57.7]} 6. h3 {[%clk 0:02:51.1]} 6... Be6 {[%clk 0:02:50.2]}
7. d3 {[%clk 0:02:50.3]} 7... Qd7 {[%clk 0:02:49.4]} 8. Nd5 {[%clk 0:02:43.9]}
8... Nge7 {[%clk 0:02:45.2]} 9. c3 {[%clk 0:02:41.4]} 9... O-O-O {[%clk
0:02:09.3]} 10. b4 {[%clk 0:02:34.7]} 10... Bb6 {[%clk 0:02:05.8]} 11. a4 {[%clk
0:02:35.5]} 11... a5 {[%clk 0:01:51.6]} 12. Nxb6+ {[%clk 0:02:09]} 12... cxb6
{[%clk 0:01:51]} 13. b5 {[%clk 0:02:09.2]} 13... Na7 {[%clk 0:01:47.7]} 14. Be3
{[%clk 0:02:09.8]} 14... Kc7 {[%clk 0:01:47.6]} 15. d4 {[%clk 0:02:09.4]} 15...
f6 {[%clk 0:01:19.7]} 16. c4 {[%clk 0:02:03.9]} 16... Nac8 {[%clk 0:01:15.3]}
17. Qc2 {[%clk 0:01:53.2]} 17... Kb8 {[%clk 0:01:14.7]} 18. Rd1 {[%clk
0:01:49.7]} 18... Qc7 {[%clk 0:01:03.2]} 19. Rc1 {[%clk 0:01:41.8]} 19... g5
{[%clk 0:01:01.3]} 20. O-O {[%clk 0:01:33.2]} 20... Qd7 {[%clk 0:00:51.7]} 21.
Kh2 {[%clk 0:01:32.8]} 21... Ng6 {[%clk 0:00:47]} 22. c5 {[%clk 0:01:31.8]}
22... exd4 {[%clk 0:00:37.3]} 23. c6 {[%clk 0:01:31.5]} 23... bxc6 {[%clk
0:00:19.3]} 24. bxc6 {[%clk 0:01:31.5]} 24... Qc7 {[%clk 0:00:19.3]} 25. Nxd4
{[%clk 0:01:32.2]} 25... h4 {[%clk 0:00:10.1]} 26. Nxe6 {[%clk 0:01:31]} 26...
hxg3+ {[%clk 0:00:09.6]} 27. fxg3 {[%clk 0:01:31.7]} 1-0

[Event "*** MasterClass Titled Tuesday Blitz"]
[Site "Chess.com"]
[Date "2017.12.05"]
[Round "2"]
[White "pbaglioni"]
[Black "hhbcd_grob_bes"]
[Result "0-1"]
[WhiteElo "1428"]
[BlackElo "1442"]
[TimeControl "180+2"]
[EndTime "14:34:49 PST"]
[Termination "hhbcd_grob_bes won by checkmate"]

1. e4 {[%clk 0:03:01.9]} 1... e5 {[%clk 0:02:59.5]} 2. Nf3 {[%clk 0:03:03.4]}
2... Nc6 {[%clk 0:02:58.1]} 3. Bc4 {[%clk 0:03:04.7]} 3... Bc5 {[%clk
0:02:58.1]} 4. d3 {[%clk 0:03:06]} 4... Nf6 {[%clk 0:02:59.2]} 5. O-O {[%clk
0:03:07.4]} 5... h6 {[%clk 0:02:59.3]} 6. Nc3 {[%clk 0:03:08.7]} 6... d6 {[%clk
0:02:59.4]} 7. Na4 {[%clk 0:03:09.8]} 7... Bb6 {[%clk 0:02:59.3]} 8. Nxb6 {[%clk
0:03:11.3]} 8... axb6 {[%clk 0:03:00.9]} 9. c3 {[%clk 0:03:12.4]} 9... O-O
{[%clk 0:03:01.6]} 10. Bb3 {[%clk 0:03:13.8]} 10... Be6 {[%clk 0:03:01.3]} 11.
Bc2 {[%clk 0:03:11.3]} 11... d5 {[%clk 0:03:01.3]} 12. Qe2 {[%clk 0:03:09.6]}
12... dxe4 {[%clk 0:03:00.8]} 13. dxe4 {[%clk 0:03:09.8]} 13... Qe7 {[%clk
0:03:00.1]} 14. Rd1 {[%clk 0:03:10.1]} 14... Rfd8 {[%clk 0:03:00.7]} 15. Rxd8+
{[%clk 0:03:10.5]} 15... Rxd8 {[%clk 0:03:02.2]} 16. b4 {[%clk 0:03:11.3]} 16...
b5 {[%clk 0:02:53.7]} 17. a4 {[%clk 0:03:10.6]} 17... bxa4 {[%clk 0:02:53.8]}
18. Rxa4 {[%clk 0:03:12.1]} 18... Qd6 {[%clk 0:02:33.1]} 19. Nd2 {[%clk
0:02:55.7]} 19... Bg4 {[%clk 0:02:15]} 20. f3 {[%clk 0:02:53.5]} 20... Be6
{[%clk 0:02:16.1]} 21. Ra1 {[%clk 0:02:52]} 21... b6 {[%clk 0:02:15.2]} 22. Ba4
{[%clk 0:02:48.4]} 22... Ne7 {[%clk 0:02:15.5]} 23. Bb3 {[%clk 0:02:40.3]} 23...
Ng6 {[%clk 0:01:58.3]} 24. Bxe6 {[%clk 0:02:40.5]} 24... Qxe6 {[%clk 0:01:59.8]}
25. Ba3 {[%clk 0:02:35.1]} 25... Nf4 {[%clk 0:02:00.2]} 26. Qe3 {[%clk
0:02:28.7]} 26... Qc6 {[%clk 0:01:31.1]} 27. Bb2 {[%clk 0:02:15.2]} 27... Nd3
{[%clk 0:01:31.1]} 28. Ra2 {[%clk 0:02:03.4]} 28... Nh5 {[%clk 0:01:18.1]} 29.
g3 {[%clk 0:02:01.3]} 29... f5 {[%clk 0:01:14.9]} 30. Nf1 {[%clk 0:01:48.3]}
30... f4 {[%clk 0:01:10.6]} 31. gxf4 {[%clk 0:01:49.2]} 31... Nhxf4 {[%clk
0:01:11.3]} 32. Ng3 {[%clk 0:01:39.1]} 32... Qg6 {[%clk 0:00:42.4]} 33. h4
{[%clk 0:01:31.9]} 33... Qxg3+ {[%clk 0:00:40.8]} 34. Kh1 {[%clk 0:01:28.8]}
34... Qg2# {[%clk 0:00:40.8]} 0-1

[Event "*** MasterClass Titled Tuesday Blitz"]
[Site "Chess.com"]
[Date "2017.12.05"]
[Round "2"]
[White "MITerryble"]
[Black "nurmiTV"]
[Result "1-0"]
[WhiteElo "2652"]
[BlackElo "2469"]
[TimeControl "180+2"]
[EndTime "14:34:50 PST"]
[Termination "MITerryble won by resignation"]

1. Nf3 {[%clk 0:03:01.9]} 1... c5 {[%clk 0:02:57.3]} 2. b3 {[%clk 0:02:54]} 2...
Nc6 {[%clk 0:02:52.2]} 3. Bb2 {[%clk 0:02:54.1]} 3... Nf6 {[%clk 0:02:51.4]} 4.
e3 {[%clk 0:02:53.2]} 4... d6 {[%clk 0:02:50.5]} 5. d4 {[%clk 0:02:53.2]} 5...
cxd4 {[%clk 0:02:50.7]} 6. exd4 {[%clk 0:02:54.3]} 6... Bg4 {[%clk 0:02:49.8]}
7. d5 {[%clk 0:02:50.5]} 7... Nb8 {[%clk 0:02:48]} 8. h3 {[%clk 0:02:48.4]} 8...
Bh5 {[%clk 0:02:41.1]} 9. Bb5+ {[%clk 0:02:34.7]} 9... Nbd7 {[%clk 0:02:41.5]}
10. O-O {[%clk 0:02:36.5]} 10... a6 {[%clk 0:02:40.2]} 11. Be2 {[%clk
0:02:34.8]} 11... Rc8 {[%clk 0:02:24.4]} 12. c4 {[%clk 0:02:34.1]} 12... Bxf3
{[%clk 0:02:09.3]} 13. Bxf3 {[%clk 0:02:34.4]} 13... b5 {[%clk 0:02:09.8]} 14.
cxb5 {[%clk 0:02:35.4]} 14... axb5 {[%clk 0:02:11.7]} 15. Nc3 {[%clk 0:02:35.9]}
15... b4 {[%clk 0:02:10.9]} 16. Nb5 {[%clk 0:02:34.9]} 16... Qb6 {[%clk
0:02:07.4]} 17. Qe2 {[%clk 0:02:29]} 17... Ne5 {[%clk 0:01:57.6]} 18. Bxe5
{[%clk 0:02:26.2]} 18... dxe5 {[%clk 0:01:58.3]} 19. Rac1 {[%clk 0:02:27.5]}
19... Rc5 {[%clk 0:01:30]} 20. Rxc5 {[%clk 0:01:26.5]} 20... Qxc5 {[%clk
0:01:31.9]} 21. Rd1 {[%clk 0:01:12.2]} 21... e4 {[%clk 0:01:18.6]} 22. Bxe4
{[%clk 0:01:04]} 22... Nxe4 {[%clk 0:01:16.1]} 23. Qxe4 {[%clk 0:01:05.8]} 23...
Qxb5 {[%clk 0:01:14]} 24. d6 {[%clk 0:01:06.9]} 24... Qa6 {[%clk 0:00:57.7]} 25.
Qe5 {[%clk 0:00:49.5]} 25... Qb7 {[%clk 0:00:41.1]} 26. d7+ {[%clk 0:00:47.7]}
1-0

[Event "*** MasterClass Titled Tuesday Blitz"]
[Site "Chess.com"]
[Date "2017.12.05"]
[Round "2"]
[White "Korchmar_Vasiliy"]
[Black "Hunninn"]
[Result "1-0"]
[WhiteElo "2578"]
[BlackElo "2402"]
[TimeControl "180+2"]
[EndTime "14:35:02 PST"]
[Termination "Korchmar_Vasiliy won by resignation"]

1. d4 {[%clk 0:03:00.6]} 1... d5 {[%clk 0:02:58.4]} 2. Nf3 {[%clk 0:03:01.1]}
2... e6 {[%clk 0:02:59]} 3. Bf4 {[%clk 0:03:02.4]} 3... c5 {[%clk 0:02:56]} 4.
e3 {[%clk 0:03:03.2]} 4... Qb6 {[%clk 0:02:56.3]} 5. b3 {[%clk 0:02:55.1]} 5...
Nc6 {[%clk 0:02:55]} 6. c3 {[%clk 0:02:53.8]} 6... Nf6 {[%clk 0:02:55]} 7. Nbd2
{[%clk 0:02:54.3]} 7... Bd7 {[%clk 0:02:54.9]} 8. Bd3 {[%clk 0:02:54.1]} 8...
Rc8 {[%clk 0:02:55.2]} 9. O-O {[%clk 0:02:54.8]} 9... cxd4 {[%clk 0:02:55.5]}
10. exd4 {[%clk 0:02:52.9]} 10... Ba3 {[%clk 0:02:54.7]} 11. Rb1 {[%clk
0:02:45]} 11... Ne7 {[%clk 0:02:53.4]} 12. c4 {[%clk 0:02:36.7]} 12... Qd8
{[%clk 0:02:38.7]} 13. c5 {[%clk 0:02:32.1]} 13... Bb4 {[%clk 0:02:38.7]} 14.
Bg5 {[%clk 0:02:20.1]} 14... Nc6 {[%clk 0:02:33.6]} 15. Qc1 {[%clk 0:01:58.1]}
15... Ba5 {[%clk 0:02:22.2]} 16. a3 {[%clk 0:01:57.4]} 16... Bc7 {[%clk
0:02:22.6]} 17. b4 {[%clk 0:01:56.9]} 17... a6 {[%clk 0:02:23.6]} 18. a4 {[%clk
0:01:57.9]} 18... h6 {[%clk 0:02:14.5]} 19. Bh4 {[%clk 0:01:58.4]} 19... g5
{[%clk 0:02:13.6]} 20. Bg3 {[%clk 0:01:59.3]} 20... Bxg3 {[%clk 0:02:11.5]} 21.
hxg3 {[%clk 0:02:01.2]} 21... g4 {[%clk 0:02:12.5]} 22. Ne5 {[%clk 0:01:53.3]}
22... Nxe5 {[%clk 0:02:11.3]} 23. dxe5 {[%clk 0:01:53.2]} 23... Ng8 {[%clk
0:02:12.1]} 24. b5 {[%clk 0:01:47.3]} 24... axb5 {[%clk 0:02:07.9]} 25. axb5
{[%clk 0:01:49.2]} 25... h5 {[%clk 0:02:08.1]} 26. Nb3 {[%clk 0:01:46.1]} 26...
h4 {[%clk 0:02:02.2]} 27. Qf4 {[%clk 0:01:46.4]} 27... Nh6 {[%clk 0:01:56.8]}
28. Rfc1 {[%clk 0:01:44.9]} 28... Qe7 {[%clk 0:01:53.9]} 29. Na5 {[%clk
0:01:30.4]} 29... Rxc5 {[%clk 0:01:45.9]} 30. Rxc5 {[%clk 0:01:19.1]} 30... Qxc5
{[%clk 0:01:45.4]} 31. Nxb7 {[%clk 0:01:20]} 31... Qc3 {[%clk 0:01:41.5]} 32.
Nd6+ {[%clk 0:01:20.9]} 32... Kf8 {[%clk 0:01:41.9]} 33. Qf6 {[%clk 0:01:03.9]}
33... Qxd3 {[%clk 0:01:18.8]} 34. Qxh8+ {[%clk 0:01:02.7]} 34... Ng8 {[%clk
0:01:19.8]} 35. Ra1 {[%clk 0:00:57.9]} 35... hxg3 {[%clk 0:01:20.3]} 36. Ra8+
{[%clk 0:00:46.7]} 36... Ke7 {[%clk 0:01:20.1]} 37. Qh4+ {[%clk 0:00:47.2]} 1-0

[Event "*** MasterClass Titled Tuesday Blitz"]
[Site "Chess.com"]
[Date "2017.12.05"]
[Round "2"]
[White "Frolik67"]
[Black "Vamostodorecto"]
[Result "1-0"]
[WhiteElo "2407"]
[BlackElo "2333"]
[TimeControl "180+2"]
[EndTime "14:35:03 PST"]
[Termination "Frolik67 won by resignation"]

1. e4 {[%clk 0:02:46.1]} 1... e5 {[%clk 0:03:00.1]} 2. Nf3 {[%clk 0:02:47]} 2...
Nc6 {[%clk 0:03:01.3]} 3. Bc4 {[%clk 0:02:47.5]} 3... Nf6 {[%clk 0:03:01.7]} 4.
d3 {[%clk 0:02:48.3]} 4... Be7 {[%clk 0:03:03]} 5. h3 {[%clk 0:02:49.1]} 5...
O-O {[%clk 0:03:03]} 6. c3 {[%clk 0:02:50.4]} 6... d6 {[%clk 0:03:04.5]} 7. Be3
{[%clk 0:02:50.8]} 7... Kh8 {[%clk 0:03:04.8]} 8. Nbd2 {[%clk 0:02:51.6]} 8...
Ng8 {[%clk 0:03:04.9]} 9. g4 {[%clk 0:02:52.4]} 9... Na5 {[%clk 0:03:02.3]} 10.
Bb5 {[%clk 0:02:53]} 10... a6 {[%clk 0:03:02.6]} 11. Ba4 {[%clk 0:02:54.3]}
11... b5 {[%clk 0:03:04.2]} 12. Bc2 {[%clk 0:02:55.4]} 12... c5 {[%clk
0:03:05.8]} 13. d4 {[%clk 0:02:55.8]} 13... cxd4 {[%clk 0:03:05]} 14. cxd4
{[%clk 0:02:57.7]} 14... exd4 {[%clk 0:02:55.6]} 15. Bxd4 {[%clk 0:02:59.6]}
15... Bf6 {[%clk 0:02:54.8]} 16. Nf1 {[%clk 0:02:49.9]} 16... Nc4 {[%clk
0:02:51.7]} 17. Ng3 {[%clk 0:02:49.7]} 17... Nxb2 {[%clk 0:02:46.2]} 18. Qe2
{[%clk 0:02:42.2]} 18... Bxd4 {[%clk 0:02:40]} 19. Nxd4 {[%clk 0:02:42.5]} 19...
Qf6 {[%clk 0:02:41.6]} 20. Nb3 {[%clk 0:02:27.5]} 20... Nc4 {[%clk 0:02:39.8]}
21. O-O {[%clk 0:02:24.3]} 21... Ne5 {[%clk 0:02:39]} 22. f4 {[%clk 0:02:21.7]}
22... Ng6 {[%clk 0:02:34.1]} 23. Qe3 {[%clk 0:02:14.5]} 23... Bb7 {[%clk
0:02:31.1]} 24. Rad1 {[%clk 0:02:11.5]} 24... Rfe8 {[%clk 0:02:30.1]} 25. Nh5
{[%clk 0:02:08.1]} 25... Qe7 {[%clk 0:02:25.6]} 26. Rfe1 {[%clk 0:01:48.6]}
26... Nf6 {[%clk 0:02:24.6]} 27. Nd4 {[%clk 0:01:42.3]} 27... Nxh5 {[%clk
0:02:22.9]} 28. gxh5 {[%clk 0:01:42.4]} 28... Nf8 {[%clk 0:02:18.4]} 29. Nf5
{[%clk 0:01:43.2]} 29... Qc7 {[%clk 0:02:13.1]} 30. Qg3 {[%clk 0:01:27.3]} 30...
Ne6 {[%clk 0:02:10.6]} 31. Bb3 {[%clk 0:01:26.6]} 31... Qc5+ {[%clk 0:02:02.7]}
32. Kh2 {[%clk 0:01:25.6]} 32... g6 {[%clk 0:01:47.6]} 33. Nxd6 {[%clk
0:01:24.6]} 33... Qc7 {[%clk 0:01:27.1]} 34. f5 {[%clk 0:01:14]} 34... Red8
{[%clk 0:01:09]} 35. fxe6 {[%clk 0:01:13.2]} 35... fxe6 {[%clk 0:00:59.7]} 36.
h6 {[%clk 0:01:04.4]} 36... Rf8 {[%clk 0:00:54.6]} 37. Qe5+ {[%clk 0:01:03]}
37... Kg8 {[%clk 0:00:54.4]} 38. Bxe6+ {[%clk 0:01:03.7]} 1-0

[Event "*** MasterClass Titled Tuesday Blitz"]
[Site "Chess.com"]
[Date "2017.12.05"]
[Round "2"]
[White "lrivaspicazo"]
[Black "benhal"]
[Result "0-1"]
[WhiteElo "1716"]
[BlackElo "2212"]
[TimeControl "180+2"]
[EndTime "14:35:05 PST"]
[Termination "benhal won by resignation"]

1. e4 {[%clk 0:03:00.1]} 1... g6 {[%clk 0:03:00]} 2. f4 {[%clk 0:03:00.2]} 2...
d5 {[%clk 0:02:59.5]} 3. e5 {[%clk 0:03:01.1]} 3... h5 {[%clk 0:02:59.2]} 4. Nf3
{[%clk 0:03:01.7]} 4... Nh6 {[%clk 0:02:59.6]} 5. h3 {[%clk 0:03:02]} 5... Bg7
{[%clk 0:02:59.9]} 6. d4 {[%clk 0:03:01.5]} 6... e6 {[%clk 0:02:59.5]} 7. Be3
{[%clk 0:03:01.4]} 7... Nf5 {[%clk 0:03:00.2]} 8. Bf2 {[%clk 0:03:01.2]} 8... b6
{[%clk 0:02:59]} 9. Bd3 {[%clk 0:03:01.4]} 9... Nd7 {[%clk 0:02:51.6]} 10. c3
{[%clk 0:03:02]} 10... c5 {[%clk 0:02:50.6]} 11. Na3 {[%clk 0:03:02.4]} 11...
cxd4 {[%clk 0:02:46.2]} 12. Nb5 {[%clk 0:02:54.2]} 12... dxc3 {[%clk 0:02:45]}
13. Bxf5 {[%clk 0:02:54.1]} 13... gxf5 {[%clk 0:02:44.9]} 14. Nd6+ {[%clk
0:02:54.4]} 14... Kf8 {[%clk 0:02:45.2]} 15. bxc3 {[%clk 0:02:55.1]} 15... Qc7
{[%clk 0:02:43.6]} 16. Bd4 {[%clk 0:02:54.2]} 16... Bh6 {[%clk 0:02:40.2]} 17.
O-O {[%clk 0:02:53.5]} 17... Ba6 {[%clk 0:02:34.2]} 18. Ng5 {[%clk 0:02:43.2]}
18... Bxg5 {[%clk 0:02:30.2]} 19. fxg5 {[%clk 0:02:43.6]} 19... Bxf1 {[%clk
0:02:31.4]} 20. Qxf1 {[%clk 0:02:41.4]} 20... Nc5 {[%clk 0:02:30]} 21. g6 {[%clk
0:02:41.2]} 21... fxg6 {[%clk 0:02:30.2]} 22. Qf4 {[%clk 0:02:37]} 22... Ne4
{[%clk 0:02:30.4]} 23. Qh4 {[%clk 0:02:34.7]} 23... Qe7 {[%clk 0:02:28.3]} 24.
Qe1 {[%clk 0:02:29.6]} 24... h4 {[%clk 0:02:21.3]} 25. a4 {[%clk 0:02:24.1]}
25... Rh7 {[%clk 0:02:00.2]} 26. a5 {[%clk 0:02:24.3]} 26... bxa5 {[%clk
0:02:00.1]} 27. Rxa5 {[%clk 0:02:24.2]} 27... Nxd6 {[%clk 0:02:01.6]} 28. exd6
{[%clk 0:02:22.8]} 28... Qd8 {[%clk 0:02:02.5]} 29. c4 {[%clk 0:02:17.2]} 29...
dxc4 {[%clk 0:01:55.1]} 30. Qe5 {[%clk 0:02:17]} 30... Kf7 {[%clk 0:01:36.8]}
31. Rc5 {[%clk 0:02:08.4]} 31... Rc8 {[%clk 0:01:15.4]} 32. Ra5 {[%clk
0:01:56.3]} 32... Kf8 {[%clk 0:01:07.8]} 33. Rxa7 {[%clk 0:01:48.4]} 33... Rxa7
{[%clk 0:01:05.6]} 34. Qh8+ {[%clk 0:01:48.6]} 34... Kf7 {[%clk 0:01:06.3]} 35.
Qg7+ {[%clk 0:01:48.3]} 35... Ke8 {[%clk 0:01:07]} 36. Qxg6+ {[%clk 0:01:41.4]}
36... Kd7 {[%clk 0:01:06.9]} 37. Qf7+ {[%clk 0:01:30.6]} 37... Kxd6 {[%clk
0:01:07.7]} 38. Qxa7 {[%clk 0:01:31.2]} 38... c3 {[%clk 0:01:08.8]} 39. Qa3+
{[%clk 0:01:29.4]} 39... Kd5 {[%clk 0:01:06.7]} 40. Bxc3 {[%clk 0:01:30.2]}
40... Qb6+ {[%clk 0:01:07.6]} 41. Kh2 {[%clk 0:01:29.7]} 41... Qc7+ {[%clk
0:01:08.2]} 42. Kg1 {[%clk 0:01:30.3]} 42... Qxc3 {[%clk 0:01:09]} 0-1

[Event "*** MasterClass Titled Tuesday Blitz"]
[Site "Chess.com"]
[Date "2017.12.05"]
[Round "2"]
[White "MaxLeto"]
[Black "ChessQueen"]
[Result "0-1"]
[WhiteElo "2414"]
[BlackElo "2598"]
[TimeControl "180+2"]
[EndTime "14:35:07 PST"]
[Termination "ChessQueen won by resignation"]

1. d4 {[%clk 0:02:49.5]} 1... Nf6 {[%clk 0:02:59.9]} 2. Bf4 {[%clk 0:02:48.7]}
2... b6 {[%clk 0:02:58.2]} 3. e3 {[%clk 0:02:49.4]} 3... Bb7 {[%clk 0:02:59.2]}
4. Nf3 {[%clk 0:02:50.5]} 4... g6 {[%clk 0:03:00.4]} 5. Be2 {[%clk 0:02:50]}
5... Bg7 {[%clk 0:03:01.5]} 6. c4 {[%clk 0:02:34.4]} 6... O-O {[%clk 0:03:00.3]}
7. Nc3 {[%clk 0:02:34.6]} 7... d5 {[%clk 0:03:00.7]} 8. O-O {[%clk 0:02:29]}
8... Nbd7 {[%clk 0:02:56]} 9. Rc1 {[%clk 0:02:10.4]} 9... c5 {[%clk 0:02:54.9]}
10. cxd5 {[%clk 0:01:35.1]} 10... Nxd5 {[%clk 0:02:54.7]} 11. Nxd5 {[%clk
0:01:36.1]} 11... Bxd5 {[%clk 0:02:55.6]} 12. dxc5 {[%clk 0:00:58.2]} 12... Nxc5
{[%clk 0:02:54.6]} 13. b4 {[%clk 0:00:59.5]} 13... Ne4 {[%clk 0:02:54.3]} 14.
Bc7 {[%clk 0:00:53.6]} 14... Qd7 {[%clk 0:02:54.4]} 15. Be5 {[%clk 0:00:42.5]}
15... f6 {[%clk 0:02:46]} 16. Bc4 {[%clk 0:00:34.6]} 16... e6 {[%clk 0:02:09.6]}
17. Bxd5 {[%clk 0:00:34.8]} 17... Qxd5 {[%clk 0:02:06.5]} 18. Qxd5 {[%clk
0:00:35.1]} 18... exd5 {[%clk 0:02:08.1]} 19. Bd4 {[%clk 0:00:33.4]} 19... Rfc8
{[%clk 0:02:09]} 20. Rfd1 {[%clk 0:00:30.6]} 20... Kf7 {[%clk 0:02:09.5]} 21.
Kf1 {[%clk 0:00:30]} 21... Ke6 {[%clk 0:02:08.3]} 22. Ke2 {[%clk 0:00:31.5]}
22... g5 {[%clk 0:01:59.2]} 23. Nd2 {[%clk 0:00:26.2]} 23... Nd6 {[%clk
0:01:58.6]} 24. Kd3 {[%clk 0:00:21.6]} 24... h5 {[%clk 0:01:55.3]} 25. Ba1
{[%clk 0:00:19.3]} 25... g4 {[%clk 0:01:41]} 26. Nb3 {[%clk 0:00:19.9]} 26...
Ne4 {[%clk 0:01:42.1]} 27. f3 {[%clk 0:00:19.1]} 27... Nf2+ {[%clk 0:01:42.5]}
28. Ke2 {[%clk 0:00:18.5]} 28... Nxd1 {[%clk 0:01:43.6]} 29. Kxd1 {[%clk
0:00:18.7]} 29... Rxc1+ {[%clk 0:01:43.1]} 30. Kxc1 {[%clk 0:00:20.2]} 30...
gxf3 {[%clk 0:01:43.7]} 31. gxf3 {[%clk 0:00:21.2]} 31... Bf8 {[%clk 0:01:44]}
32. Nd4+ {[%clk 0:00:21.4]} 32... Kd7 {[%clk 0:01:44.4]} 33. a3 {[%clk
0:00:22.2]} 33... a5 {[%clk 0:01:44.5]} 34. Bc3 {[%clk 0:00:21.4]} 34... axb4
{[%clk 0:01:45.6]} 35. axb4 {[%clk 0:00:23.3]} 35... Ra2 {[%clk 0:01:46.2]} 36.
Nc2 {[%clk 0:00:24]} 36... Bd6 {[%clk 0:01:45.2]} 37. Kb1 {[%clk 0:00:24.7]}
37... Ra8 {[%clk 0:01:44.5]} 38. Bxf6 {[%clk 0:00:26]} 38... Bxh2 {[%clk
0:01:44.9]} 39. Nd4 {[%clk 0:00:27]} 39... Bg1 {[%clk 0:01:43.7]} 40. Nf5 {[%clk
0:00:27.7]} 40... Ke6 {[%clk 0:01:43]} 0-1

[Event "*** MasterClass Titled Tuesday Blitz"]
[Site "Chess.com"]
[Date "2017.12.05"]
[Round "2"]
[White "igorkovalenko"]
[Black "MartinZumsande"]
[Result "0-1"]
[WhiteElo "2712"]
[BlackElo "2454"]
[TimeControl "180+2"]
[EndTime "14:35:14 PST"]
[Termination "MartinZumsande won by resignation"]

1. e4 {[%clk 0:02:46.4]} 1... e6 {[%clk 0:03:00.6]} 2. d4 {[%clk 0:02:47.5]}
2... d5 {[%clk 0:03:02.2]} 3. Nc3 {[%clk 0:02:49]} 3... Nf6 {[%clk 0:03:03.7]}
4. Bg5 {[%clk 0:02:48.1]} 4... Bb4 {[%clk 0:03:03.7]} 5. e5 {[%clk 0:02:49]}
5... h6 {[%clk 0:03:05]} 6. Bd2 {[%clk 0:02:44.4]} 6... Bxc3 {[%clk 0:03:05.7]}
7. bxc3 {[%clk 0:02:44.4]} 7... Ne4 {[%clk 0:03:07.3]} 8. Qg4 {[%clk 0:02:45.8]}
8... g6 {[%clk 0:03:08.8]} 9. Bd3 {[%clk 0:02:46.6]} 9... Nxd2 {[%clk
0:03:10.2]} 10. Kxd2 {[%clk 0:02:48.5]} 10... c5 {[%clk 0:03:11.6]} 11. Nf3
{[%clk 0:02:49.4]} 11... Nc6 {[%clk 0:03:12.6]} 12. h4 {[%clk 0:02:50.2]} 12...
cxd4 {[%clk 0:03:12.5]} 13. cxd4 {[%clk 0:02:50.7]} 13... Qa5+ {[%clk
0:03:13.8]} 14. Ke3 {[%clk 0:02:46.3]} 14... b6 {[%clk 0:03:15.7]} 15. Qf4
{[%clk 0:02:47.3]} 15... Ba6 {[%clk 0:03:14.6]} 16. Qf6 {[%clk 0:02:48.4]} 16...
Rf8 {[%clk 0:03:12.9]} 17. a3 {[%clk 0:02:47]} 17... Rc8 {[%clk 0:03:02.7]} 18.
h5 {[%clk 0:02:46.1]} 18... gxh5 {[%clk 0:03:03.1]} 19. Qxh6 {[%clk 0:02:43.5]}
19... Ne7 {[%clk 0:02:36.4]} 20. Qxh5 {[%clk 0:02:29.5]} 20... Bxd3 {[%clk
0:02:36.2]} 21. cxd3 {[%clk 0:02:27.5]} 21... Nf5+ {[%clk 0:02:36.3]} 22. Kf4
{[%clk 0:02:29]} 22... Rc3 {[%clk 0:01:34.6]} 23. Rhc1 {[%clk 0:02:17.1]} 23...
Rg8 {[%clk 0:01:27.5]} 24. g4 {[%clk 0:02:12.8]} 24... Nxd4 {[%clk 0:01:16.9]}
25. Nxd4 {[%clk 0:02:11.3]} 25... Rxc1 {[%clk 0:01:18]} 26. Rxc1 {[%clk
0:02:06]} 26... Qd2+ {[%clk 0:01:18.9]} 27. Kg3 {[%clk 0:01:59.5]} 27... Qxc1
{[%clk 0:01:18.3]} 28. Nxe6 {[%clk 0:01:59.7]} 28... Qg1+ {[%clk 0:01:06.6]} 29.
Kf3 {[%clk 0:02:00.8]} 29... Qd1+ {[%clk 0:01:04.1]} 30. Ke3 {[%clk 0:01:53.7]}
30... Ke7 {[%clk 0:00:44.6]} 31. Qh4+ {[%clk 0:01:44]} 31... Kd7 {[%clk
0:00:40.8]} 32. Qf6 {[%clk 0:01:42.7]} 32... Qe1+ {[%clk 0:00:32]} 33. Kf3
{[%clk 0:01:42.5]} 33... Qd1+ {[%clk 0:00:31.1]} 34. Ke3 {[%clk 0:01:44]} 34...
Qe1+ {[%clk 0:00:32.1]} 35. Kf3 {[%clk 0:01:45.5]} 35... Re8 {[%clk 0:00:32.1]}
36. Qxf7+ {[%clk 0:01:41]} 36... Re7 {[%clk 0:00:33]} 37. Nf8+ {[%clk
0:01:42.5]} 37... Kd8 {[%clk 0:00:31.3]} 38. Qxd5+ {[%clk 0:01:43.7]} 38... Ke8
{[%clk 0:00:25.6]} 39. Ng6 {[%clk 0:01:44.8]} 39... Qh1+ {[%clk 0:00:25.4]} 0-1